[Event "40th Cappelle Open 2024"]
[Site "Cappelle-la-Grande"]
[Date "2024.03.04"]
[Round "4.16"]
[White "Grooten, Herman"]
[Black "Loiseau, Quentin"]
[Result "1/2-1/2"]
[ECO "D46"]
[WhiteElo "2223"]
[BlackElo "2412"]
[Annotator "TA"]
[PlyCount "89"]
[EventDate "2024.03.02"]
[EventType "swiss"]
[EventCountry "FRA"]
[SourceTitle "playchess.com"]
[Source "ChessBase"]
[SourceQuality "1"]
[TimeControl "40/5400+30:1800+30"]

{[%evp 16,89,11,13,35,37,50,40,43,48,54,48,65,64,45,43,40,41,87,39,43,35,40,27,25,16,24,27,25,27,22,20,26,6,6,0,0,0,0,0,5,0,0,0,0,0,6,8,4,0,0,0,0,0,0,0,0,0,0,0,0,0,0,0,0,0,0,0,0,0,0,0,0,0,0,0]} 1. d4 {[%emt 0:00:04]} Nf6 {[%emt 0:04:09]} 2. c4 {[%emt 0:00:07]} e6 {[%emt 0:00:11]} 3. Nf3 {[%emt 0:00:18]} d5 {[%emt 0:00:26]} 4. Nc3 {[%emt 0:00:33]} c6 {[%emt 0:00:29]} 5. e3 {[%emt 0:01:26]} Nbd7 {[%emt 0:00:46]} 6. Qc2 {[%emt 0:00:57]} Bd6 {[%emt 0:00:05]} 7. b3 {[%emt 0:00:42]} O-O {[%emt 0:00:29]} 8. Bd3 {[%emt 0:00:49]} Re8 {[%emt 0:06:35]} 9. O-O {[%emt 0:02:11]} a6 {[%emt 0:02:26]} 10. Bb2 {[%emt 0:10:13]} e5 {[%emt 0:04:50]} 11. cxd5 {[%emt 0:04:29]} cxd5 {[%emt 0:00:55] [#] aiming for ...e4. White is slightly better.} 12. e4 {[%emt 0:04:16]} exd4 {[%emt 0:09:57]} 13. Nxd5 {[%emt 0:04:02]} Nxd5 {[%emt 0:00:58]} 14. exd5 {[%emt 0:00:40]} Nf6 {[%emt 0:00:24]} 15. Nxd4 {[%emt 0:12:00]} h6 {[%emt 0:03:42][%cal Od6e5]} 16. Rfe1 {[%emt 0:05:19]} Nxd5 {[%emt 0:05:36]} (16... Rxe1+ $14 {is more appropriate.} 17. Rxe1 Bb4) 17. Nf5 {[%emt 0:03:22]} (17. Rxe8+ $16 Qxe8 18. Bh7+ Kh8 19. Be4) 17... Bxf5 $14 {[%emt 0:02:11]} 18. Bxf5 {[%emt 0:02:37]} Qa5 {[%emt 0:07:41]} 19. Re4 {[%emt 0:05:33]} Ba3 {[%emt 0:04:40]} 20. Bd4 {[%emt 0:04:41]} Nb4 {[%emt 0:13:52]} 21. Qe2 {[%emt 0:05:22]} Rxe4 {[%emt 0:01:41]} 22. Bxe4 {[%emt 0:00:30] This pair of bishops is nice.} Nc6 {[%emt 0:00:11]} 23. Bxc6 {[%emt 0:06:55]} bxc6 {[%emt 0:00:08]} 24. Rd1 {[%emt 0:02:42]} Rd8 {[%emt 0:01:58] The position is equal.} 25. Ba1 {[%emt 0:01:03]} Rxd1+ {[%emt 0:00:57]} 26. Qxd1 $11 {[%emt 0:00:05][%mdl 4096] Endgame. KQB-KQB} Qf5 {[%emt 0:00:09]} 27. Bd4 {[%emt 0:04:44]} h5 {[%emt 0:04:23]} 28. f3 {[%emt 0:05:04]} Qd5 {[%emt 0:02:08]} 29. Qa1 {[%emt 0:00:37] Prevents Bb2} f6 {[%emt 0:00:33]} 30. Qc3 {[%emt 0:01:05]} Kf7 {[%emt 0:03:19]} 31. Kf2 {[%emt 0:00:49]} Bd6 {[%emt 0:00:57]} 32. h4 {[%emt 0:01:32]} Be7 {[%emt 0:01:17]} 33. Ke2 {[%emt 0:03:24]} g6 {[%emt 0:02:40]} 34. Be3 {[%emt 0:02:33]} Ke6 {[%emt 0:00:59]} 35. Qc2 {[%emt 0:02:09]} f5 {[%emt 0:00:41]} 36. Bg5 {[%emt 0:01:08]} Bc5 {[%emt 0:01:32]} 37. Qc4 {[%emt 0:01:22]} Qxc4+ {[%emt 0:00:48]} (37... a5 {is more complex.} 38. Qc3 Bd4 39. Qd3 Bc5) 38. bxc4 {[%emt 0:00:02] KB-KB} Bd6 {[%emt 0:00:57]} 39. Kd3 {[%emt 0:01:00]} Bg3 {[%emt 0:00:34]} 40. Bd8 {[%emt 0:00:40]} Kd7 {[%emt 0:00:06]} 41. Bf6 {[%emt 0:30:18]} Ke6 {[%emt 0:30:06]} 42. Bd8 {[%emt 0:00:14]} Kd7 {[%emt 0:00:06]} 43. Bf6 {[%emt 0:00:09]} Kd6 {[%emt 0:00:22]} 44. Bg5 {[%emt 0:01:02]} Ke6 {[%emt 0:00:45]} 45. Bd8 {[%emt 0:00:23] Weighted Error Value: White=0.03 (flawless) /Black=0.04 (flawless) .  Mistake:       	White=1     	Black=1      OK:         	White=12    	Black=18} 1/2-1/2

[Event "40th Cappelle Open 2024"]
[Site "Cappelle-la-Grande"]
[Date "2024.03.04"]
[Round "4.17"]
[White "Feryn, Benjamin"]
[Black "Agdelen, Huseyin Can"]
[Result "1/2-1/2"]
[ECO "C26"]
[WhiteElo "2182"]
[BlackElo "2408"]
[Annotator "ChessBase"]
[PlyCount "45"]
[EventDate "2024.03.02"]
[EventType "swiss"]
[EventCountry "FRA"]
[SourceTitle "playchess.com"]
[Source "ChessBase"]
[SourceQuality "1"]
[TimeControl "40/5400+30:1800+30"]

1. e4 {[%emt 0:00:03]} e5 {[%emt 0:03:48]} 2. Nc3 {[%emt 0:00:20]} Nf6 {[%emt 0:01:26]} 3. d4 {[%emt 0:01:12]} exd4 {[%emt 0:02:05]} 4. Qxd4 {[%emt 0:02:23]} Nc6 {[%emt 0:00:24]} 5. Qd3 {[%emt 0:00:15]} d5 {[%emt 0:10:40]} 6. Bf4 {[%emt 0:00:59]} dxe4 {[%emt 0:04:34]} 7. Qxd8+ {[%emt 0:06:01]} Nxd8 {[%emt 0:02:16]} 8. Bxc7 {[%emt 0:01:32]} Ne6 {[%emt 0:13:00]} 9. Be5 {[%emt 0:02:13]} Ng4 {[%emt 0:17:19]} 10. Bg3 {[%emt 0:17:02]} f5 {[%emt 0:09:48]} 11. Bb5+ {[%emt 0:00:49]} Bd7 {[%emt 0:01:50]} 12. Bxd7+ {[%emt 0:00:12]} Kxd7 {[%emt 0:00:05]} 13. O-O-O+ {[%emt 0:01:33]} Kc6 {[%emt 0:01:19]} 14. Nge2 {[%emt 0:01:14]} Bc5 {[%emt 0:06:26]} 15. Rd5 {[%emt 0:07:25]} g6 {[%emt 0:03:22]} 16. h3 {[%emt 0:08:57]} Nf6 {[%emt 0:01:27]} 17. Re5 {[%emt 0:03:13]} Rhe8 {[%emt 0:04:22]} 18. Rd1 {[%emt 0:02:36]} b6 {[%emt 0:08:39]} 19. Na4 {[%emt 0:07:39]} f4 {[%emt 0:01:31]} 20. Nxc5 {[%emt 0:01:26]} bxc5 {[%emt 0:01:29]} 21. Nxf4 {[%emt 0:00:56]} Nd4 {[%emt 0:00:24]} 22. Rxe8 {[%emt 0:00:33]} Rxe8 {[%emt 0:00:05]} 23. c3 {[%emt 0:23:12]} 1/2-1/2

[Event "40th Cappelle Open 2024"]
[Site "Cappelle-la-Grande"]
[Date "2024.03.04"]
[Round "4.18"]
[White "Pucher, Sebastien"]
[Black "Lodici, Lorenzo"]
[Result "0-1"]
[ECO "A13"]
[WhiteElo "2198"]
[BlackElo "2558"]
[Annotator "TA"]
[PlyCount "80"]
[EventDate "2024.03.02"]
[EventType "swiss"]
[EventCountry "FRA"]
[SourceTitle "playchess.com"]
[Source "ChessBase"]
[SourceQuality "1"]
[TimeControl "40/5400+30:1800+30"]

{[%evp 9,80,8,10,0,16,7,10,7,17,9,39,30,25,18,33,24,35,19,27,14,33,24,36,25,72,4,35,33,50,31,34,10,31,29,21,0,0,0,0,0,0,0,0,-18,0,0,0,0,14,-19,-33,-112,-115,-170,-184,-181,-184,-191,-191,-187,-134,-155,-151,-224,-137,-137,-152,-133,3,-395,-387,-379,-378]} 1. Nf3 {[%emt 0:00:04]} d5 {[%emt 0:00:55]} 2. e3 {[%emt 0:00:18]} Nf6 {[%emt 0:01:14]} 3. c4 {[%emt 0:00:18]} e6 {[%emt 0:00:04]} 4. b3 {[%emt 0:01:26]} Bd6 {[%emt 0:00:24]} 5. Bb2 {[%emt 0:00:40]} O-O {[%emt 0:00:05]} 6. Nc3 {[%emt 0:00:46]} a6 {[%emt 0:00:37]} 7. Rc1 {[%emt 0:14:12]} b6 {[%emt 0:00:31]} 8. cxd5 {[%emt 0:00:30] The position is equal.} exd5 {[%emt 0:00:04]} 9. g3 {[%emt 0:00:19]} b5 {[%emt 0:08:54]} 10. Bg2 {[%emt 0:03:17]} Bb7 {[%emt 0:00:15]} 11. O-O {[%emt 0:02:35]} Nbd7 {[%emt 0:01:51]} 12. d4 {[%emt 0:15:01]} Re8 {[%emt 0:05:59]} 13. Qc2 {[%emt 0:01:06]} Rc8 {[%emt 0:00:21]} 14. Rfd1 {[%emt 0:02:59]} Qe7 {[%emt 0:01:13]} 15. Ne2 {[%emt 0:15:30][%cal Bc3e2,Be2f4,Bf4d3,Bd3c5][%mdl 32]} Ne4 {[%emt 0:06:03]} 16. Nf4 {[%emt 0:03:02][%cal Of3e5]} b4 {[%emt 0:04:17]} (16... c5 $11 {deserves consideration.}) 17. Qe2 {[%emt 0:08:59]} (17. Ne5 $1 $16) 17... Ndf6 {[%emt 0:03:53]} 18. Nd3 {[%emt 0:03:47]} a5 {[%emt 0:21:41] [#]} 19. Nc5 $1 {[%emt 0:12:43] Prevents Ba6} c6 {[%emt 0:05:24]} (19... Bxc5 20. dxc5) 20. Qc2 {[%emt 0:05:35]} h5 {[%emt 0:06:08]} 21. Nxb7 {[%emt 0:04:44]} Qxb7 {[%emt 0:00:30]} 22. Nh4 {[%emt 0:01:22]} (22. Qd3 {is interesting.} Ng4 23. Rc2 c5 24. dxc5 Rxc5 25. Rf1) 22... Bf8 {[%emt 0:07:42]} 23. f3 {[%emt 0:00:48]} Nd6 {[%emt 0:00:03]} 24. Bh3 {[%emt 0:01:54]} Rc7 {[%emt 0:00:42]} 25. Re1 {[%emt 0:00:06]} g6 {[%emt 0:07:48][%cal Oa5a4]} 26. Re2 {[%emt 0:00:01]} Nb5 {[%emt 0:02:49]} 27. Qd3 {[%emt 0:01:13]} Qb6 {[%emt 0:00:15]} 28. Kh1 {[%emt 0:00:36]} Bg7 {[%emt 0:05:27]} 29. Rd1 {[%emt 0:00:21]} c5 {[%emt 0:01:39]} 30. dxc5 {[%emt 0:00:43]} (30. Rc1 $1 $15) 30... Rxc5 $17 {[%emt 0:00:10]} 31. Bd4 {[%emt 0:00:33]} ({Not} 31. Nxg6 $2 fxg6 32. Qxg6 Nc3 $19) (31. Rde1 $17 {was called for.}) 31... Nxd4 $19 {[%emt 0:00:12]} 32. exd4 {[%emt 0:00:23]} Rc3 {[%emt 0:00:01]} 33. Rxe8+ {[%emt 0:00:35]} Nxe8 {[%emt 0:00:02]} 34. Qe2 {[%emt 0:00:30]} Nf6 {[%emt 0:07:03]} ({Black should play} 34... Qc6 $19 35. Bf1 Nd6) 35. Ng2 {[%emt 0:00:28]} Qc6 {[%emt 0:00:51]} 36. Nf4 {[%emt 0:00:27]} (36. Ne1 $17) 36... Rc2 {[%emt 0:01:20]} 37. Rd2 {[%emt 0:00:37]} Rxd2 {[%emt 0:00:39]} 38. Qxd2 {[%emt 0:00:02]} Bh6 {[%emt 0:00:04]} ({Better is} 38... Qc3 $17 39. Qe2 h4 (39... Qxd4 $2 40. Bc8 $19)) 39. Qf2 {[%emt 0:00:57][%mdl 8192] [#]} (39. Nxg6 $1 $11 Qc3 40. Ne7+ (40. Qxh6 Qa1+ 41. Kg2 Qxa2+ 42. Kg1 Qb1+ 43. Kg2 Qa2+ 44. Kf1 Qb1+ 45. Kg2 Qc2+ 46. Kg1 Qxg6 $11) 40... Kf8 41. Qe2 (41. Qxh6+ Kxe7 42. Qf4 Qa1+ 43. Kg2 Qxa2+ 44. Kf1 Qb1+ 45. Kg2 Qe1 $11)) 39... Bxf4 {[%emt 0:00:27]} 40. gxf4 {[%emt 0:00:02]} Qc1+ {[%emt 0:00:06] Weighted Error Value: White=0.32/Black=0.18 (very precise) .  Loses game:     	White=1     	---        Mistake:       	White=4     	Black=3      Inaccurate:     	White=1     	Black=3      OK:         	White=13    	Black=13     Best:        	---       	Black=2} 0-1

[Event "40th Cappelle Open 2024"]
[Site "Cappelle-la-Grande"]
[Date "2024.03.05"]
[Round "5.1"]
[White "Puranik, Abhimanyu"]
[Black "Vlachos, Anatole"]
[Result "1-0"]
[ECO "B13"]
[WhiteElo "2618"]
[BlackElo "2479"]
[Annotator "TA"]
[PlyCount "71"]
[EventDate "2024.03.02"]
[EventType "swiss"]
[EventCountry "FRA"]
[SourceTitle "playchess.com"]
[Source "ChessBase"]
[SourceQuality "1"]
[TimeControl "40/5400+30:1800+30"]

{[%evp 9,71,21,34,27,25,20,20,14,28,19,28,13,50,37,34,47,62,47,54,31,31,33,36,24,22,5,65,58,80,89,136,108,139,25,54,52,48,45,91,54,76,73,75,83,185,164,364,263,369,358,293,303,307,125,141,121,412,413,409,423,606,471,417,392]} 1. e4 {[%emt 0:00:14]} c6 {[%emt 0:00:04]} 2. d4 {[%emt 0:00:41]} d5 {[%emt 0:00:04]} 3. exd5 {[%emt 0:00:28]} cxd5 {[%emt 0:00:06]} 4. Bd3 {[%emt 0:00:03]} Nc6 {[%emt 0:00:07]} 5. c3 {[%emt 0:00:06]} e6 {[%emt 0:01:36]} 6. Bf4 {[%emt 0:00:42]} Bd6 {[%emt 0:00:06]} 7. Bxd6 {[%emt 0:00:36]} Qxd6 {[%emt 0:00:06]} 8. Nf3 {[%emt 0:00:05] The position is equal.} Nge7 {[%emt 0:00:54]} 9. O-O {[%emt 0:00:31]} O-O {[%emt 0:01:22]} 10. Re1 {[%emt 0:03:51]} Ng6 {[%emt 0:06:12]} 11. g3 {[%emt 0:09:58]} Bd7 {[%emt 0:09:18]} 12. Nbd2 {[%emt 0:09:47]} Rac8 {[%emt 0:09:29]} 13. h4 {[%emt 0:05:03][%cal Bh2h4,Bh4h5][%mdl 32]} Rfd8 {[%emt 0:05:43]} 14. Nf1 {[%emt 0:03:35]} Nf8 {[%emt 0:01:13]} 15. Ne3 {[%emt 0:03:55]} Be8 {[%emt 0:00:40]} 16. h5 {[%emt 0:03:32][%cal Oh5h6]} h6 {[%emt 0:02:34]} 17. Ng2 {[%emt 0:03:57]} f6 {[%emt 0:02:46]} ({Black should play} 17... Nh7 $11) 18. Nfh4 $14 {[%emt 0:00:21]} e5 {[%emt 0:02:08]} 19. Nf5 {[%emt 0:03:15]} Qd7 {[%emt 0:01:27]} (19... Qc7 $142) 20. Qg4 $16 {[%emt 0:04:25]} Kh8 {[%emt 0:02:08]} 21. Nge3 {[%emt 0:01:00] White has more active pieces.} (21. Bb5 $1 $16 {Hoping for dxe5.} Qc7 22. Ngh4) 21... Ne6 {[%emt 0:03:00]} 22. Rad1 {[%emt 0:02:35]} Qf7 {[%emt 0:07:39]} 23. Be2 $36 {[%emt 0:03:23][%mdl 2048] Black is under pressure.} Rc7 {[%emt 0:11:10]} (23... e4 $14 {is more appropriate.}) 24. f4 {[%emt 0:02:35]} exd4 {[%emt 0:06:27]} 25. cxd4 {[%emt 0:01:15]} Bd7 {[%emt 0:03:55][%cal Oe6d4]} 26. Qf3 {[%emt 0:03:37]} (26. Nxd5 $2 {perishes.} Nexd4 27. Nde3 (27. Nxc7 $2 Bxf5 28. Qh4 Nxe2+ 29. Kf2 Ned4 $19) 27... Be6 $19 (27... Qxa2 28. Qxg7#)) 26... Nf8 {[%emt 0:01:10]} (26... Bc8 $16) 27. Nd6 {[%emt 0:11:33]} ({And not} 27. Nxd5 Bxf5 28. Nxc7 Qxc7 $17 (28... Nxd4 29. Rxd4 Rxd4 30. Nb5 $15)) 27... Qg8 {[%emt 0:04:43]} (27... Qe6 {might work better.}) 28. Nxd5 $18 {[%emt 0:00:22]} Bg4 {[%emt 0:00:17]} 29. Qxg4 {[%emt 0:00:05]} Qxd5 {[%emt 0:00:03] [#]} 30. Nf5 {[%emt 0:00:30] Black must now prevent Bf3.} Qa5 {[%emt 0:03:26][%cal Oc6d4]} 31. Bd3 {[%emt 0:11:39]} (31. Bf1 $18 {and White stays clearly on top.}) 31... Nxd4 {[%emt 0:02:51]} 32. Nxd4 {[%emt 0:00:17]} Qb6 $2 {[%emt 0:01:17][%mdl 8192] [#] This move loses the game for Black.} (32... Qc5 $16) 33. Kf1 $1 {[%emt 0:02:19]} Rxd4 {[%emt 0:04:49]} 34. Re8 {[%emt 0:00:05]} Qc5 {[%emt 0:01:31]} (34... Kg8 $142 35. Qg6 Rxd3 36. Qxd3 Kf7) 35. Qf5 {[%emt 0:01:58][%csl Gd3][%cal Rf5h7]} Rxd3 {[%emt 0:02:38]} 36. Qxd3 {[%emt 0:00:07] Weighted Error Value: White=0.25 (precise) /Black=0.51.  Loses game:     	---       	Black=1      Missed win:     	White=1     	---        Mistake:       	White=1     	Black=6      Inaccurate:     	White=1     	Black=2      OK:         	White=10    	Black=9      Best:        	White=4     	Black=3      Strong:       	White=1     	---} 1-0

[Event "40th Cappelle Open 2024"]
[Site "Cappelle-la-Grande"]
[Date "2024.03.05"]
[Round "5.2"]
[White "Barp, Alberto"]
[Black "Gopal G.N."]
[Result "1-0"]
[ECO "D45"]
[WhiteElo "2449"]
[BlackElo "2575"]
[Annotator "TA"]
[PlyCount "117"]
[EventDate "2024.03.02"]
[EventType "swiss"]
[EventCountry "FRA"]
[SourceTitle "playchess.com"]
[Source "ChessBase"]
[SourceQuality "1"]
[TimeControl "40/5400+30:1800+30"]

{[%evp 21,117,21,27,26,25,32,35,32,26,35,54,66,64,57,64,60,77,89,89,88,77,75,87,74,88,78,77,82,83,84,78,70,74,77,92,71,80,37,99,80,80,80,120,94,89,106,140,140,143,136,139,77,79,0,129,118,118,122,145,147,100,106,107,115,133,153,116,102,223,224,227,231,217,231,225,225,208,159,170,93,81,74,109,0,24,28,118,119,183,171,236,236,334,334,327,353,1979,1737]} 1. d4 {[%emt 0:00:04]} d5 {[%emt 0:00:03]} 2. c4 {[%emt 0:00:17]} c6 {[%emt 0:00:06]} 3. Nf3 {[%emt 0:05:58]} Nf6 {[%emt 0:00:08]} 4. Nc3 {[%emt 0:00:54]} e6 {[%emt 0:00:09]} 5. e3 {[%emt 0:01:06]} Nbd7 {[%emt 0:00:14]} 6. Qc2 {[%emt 0:00:15]} b6 {[%emt 0:02:03]} 7. cxd5 {[%emt 0:01:01]} cxd5 {[%emt 0:00:09] is recently more successful than 7...exd5.} 8. Nb5 {[%emt 0:00:11] D45: Semi-Slav: 5 e3.} Bb4+ {[%emt 0:00:14]} 9. Bd2 {[%emt 0:00:09]} Bxd2+ {[%emt 0:00:15]} 10. Nxd2 {[%emt 0:00:17]} O-O {[%emt 0:00:38]} 11. Be2 {[%emt 0:07:05]} Ba6 {[%emt 0:10:48]} 12. a4 {[%emt 0:10:33]} Qb8 $146 {[%emt 0:35:39]} ({Predecessor:} 12... Qe7 13. O-O Rfc8 14. Qb3 Ne8 15. Bd3 Bb7 16. Nc3 a6 17. Rfc1 Nd6 18. a5 b5 {0-1 Dardha,D (2532)-Murzin,V (2519) Tata Steel-B 84th 2022 (1)}) 13. O-O {[%emt 0:03:14]} Rc8 {[%emt 0:00:07]} 14. Qb3 {[%emt 0:01:28]} Bxb5 {[%emt 0:04:48]} 15. axb5 {[%emt 0:06:59]} Qd6 {[%emt 0:00:24]} 16. Rfc1 {[%emt 0:01:54]} Rc7 {[%emt 0:01:14]} 17. Rc3 {[%emt 0:11:31]} g6 {[%emt 0:05:08]} 18. Qc2 {[%emt 0:10:13]} Rac8 {[%emt 0:16:35]} 19. Rxa7 {[%emt 0:04:21]} Rxa7 {[%emt 0:00:04]} 20. Rxc8+ {[%emt 0:00:07]} Kg7 {[%emt 0:00:01]} 21. g3 {[%emt 0:09:38]} Qb4 {[%emt 0:04:45]} 22. Qc3 {[%emt 0:01:42]} Qxc3 {[%emt 0:01:02]} 23. Rxc3 {[%emt 0:00:07]} (23. bxc3 $2 {is the wrong capture.} Ra2 24. Nc4 Rxe2 $19 (24... dxc4 $2 25. Bxc4 Rb2 26. Bf1 $19)) 23... Ra2 {[%emt 0:00:52]} 24. Rc2 {[%emt 0:01:08]} Ne8 {[%emt 0:00:14]} 25. Kg2 {[%emt 0:03:10]} Kf8 {[%emt 0:01:52]} 26. Nb3 {[%emt 0:11:13]} Nd6 {[%emt 0:02:12]} 27. Nc1 {[%emt 0:00:10]} Ra8 {[%emt 0:09:28]} 28. Rc6 {[%emt 0:01:41]} Ke7 {[%emt 0:02:28]} 29. Nd3 {[%emt 0:01:01]} f6 {[%emt 0:00:31]} (29... Ra2 $14) 30. Nb4 {[%emt 0:02:18]} Ra4 {[%emt 0:01:13]} 31. Na6 {[%emt 0:00:50]} Ra5 {[%emt 0:01:35]} 32. Rc7 {[%emt 0:02:01]} Kd8 {[%emt 0:00:37]} 33. Rc2 {[%emt 0:01:43]} Ke7 {[%emt 0:00:48]} 34. Nb4 {[%emt 0:00:55]} Ra4 {[%emt 0:00:16]} 35. Nc6+ {[%emt 0:00:35]} Ke8 {[%emt 0:00:09]} 36. Bg4 {[%emt 0:01:11]} (36. g4 $142) 36... Nf8 $16 {[%emt 0:01:00]} 37. Be2 {[%emt 0:00:20]} (37. Nb8 $142) 37... Nd7 $1 $16 {[%emt 0:00:01]} 38. Rc3 {[%emt 0:01:31]} Ra2 {[%emt 0:01:03]} 39. Ra3 {[%emt 0:00:18]} Rxb2 {[%emt 0:00:27]} 40. Ra8+ {[%emt 0:00:08]} Kf7 {[%emt 0:00:02]} 41. Rd8 $1 {[%emt 0:30:22]} Ne4 {[%emt 0:10:35]} 42. Rxd7+ {[%emt 0:00:00]} Kf8 {[%emt 0:01:25]} 43. Bf1 {[%emt 0:00:00]} Nxf2 {[%emt 0:01:02]} 44. Kg1 {[%emt 0:00:00]} ({Don't do} 44. Rxh7 Ne4+ 45. Kg1 Ng5 $14) 44... Ng4 {[%emt 0:00:50]} (44... Ne4 $16 {is a better defense.}) 45. Rxh7 $18 {[%emt 0:00:00]} Rb1 {[%emt 0:14:58]} 46. Rh4 {[%emt 0:00:00]} Nxe3 {[%emt 0:00:21]} 47. Rf4 {[%emt 0:00:00]} Kg7 {[%emt 0:01:05]} 48. Rf3 {[%emt 0:00:10]} Nc4 {[%emt 0:02:08]} 49. Kg2 {[%emt 0:02:03]} Rxb5 {[%emt 0:00:36]} 50. Bxc4 {[%emt 0:01:33]} ({White should play} 50. Rf2 $18) 50... dxc4 $16 {[%emt 0:00:04]} 51. Re3 {[%emt 0:00:21]} Rb2+ {[%emt 0:01:57]} 52. Kh3 {[%emt 0:00:01]} (52. Kf3 $16) 52... b5 {[%emt 0:01:15]} 53. Rxe6 {[%emt 0:00:06]} c3 {[%emt 0:00:31]} (53... b4 $1 $11 {remains equal.}) 54. Re7+ $16 {[%emt 0:00:25]} Kh6 {[%emt 0:00:47] [#]} 55. Rc7 $1 {[%emt 0:00:09]} b4 {[%emt 0:00:08]} (55... Rd2 $142 56. Nb4 Rxd4) 56. d5 $18 {[%emt 0:00:57]} b3 {[%emt 0:00:50]} (56... f5 $142 57. d6 g5) 57. Nd4 $18 {[%emt 0:00:40]} c2 {[%emt 0:00:21]} 58. d6 {[%emt 0:00:51]} Ra2 $2 {[%emt 0:00:30]} (58... c1=Q 59. Rxc1 Rd2 60. Nxb3 Rxd6) 59. Nxb3 {[%emt 0:00:57]} 1-0

[Event "40th Cappelle Open 2024"]
[Site "Cappelle-la-Grande"]
[Date "2024.03.05"]
[Round "5.3"]
[White "Sasikiran, Krishnan"]
[Black "Fedoryshyn, Ievgenii"]
[Result "1-0"]
[ECO "E05"]
[WhiteElo "2578"]
[BlackElo "2256"]
[Annotator "TA"]
[PlyCount "47"]
[EventDate "2024.03.02"]
[EventType "swiss"]
[EventCountry "FRA"]
[SourceTitle "playchess.com"]
[Source "ChessBase"]
[SourceQuality "1"]
[TimeControl "40/5400+30:1800+30"]

{[%evp 22,47,14,10,26,27,24,23,26,23,16,16,17,20,88,81,159,158,292,289,539,537,761,751,746,746,733,731]} 1. d4 {[%emt 0:00:14]} d5 {[%emt 0:00:07]} 2. c4 {[%emt 0:00:23]} e6 {[%emt 0:00:08]} 3. Nf3 {[%emt 0:00:37]} Nf6 {[%emt 0:00:19]} 4. g3 {[%emt 0:00:36]} Be7 {[%emt 0:00:18]} 5. Bg2 {[%emt 0:00:25]} O-O {[%emt 0:00:09]} 6. O-O {[%emt 0:01:52]} dxc4 {[%emt 0:00:48]} 7. Qc2 {[%emt 0:00:20]} a6 {[%emt 0:00:19]} 8. a4 {[%emt 0:00:37]} Bd7 {[%emt 0:00:32]} 9. Qxc4 {[%emt 0:00:28]} Bc6 {[%emt 0:00:26]} 10. Bg5 {[%emt 0:01:33]} a5 {[%emt 0:01:12]} 11. Nc3 {[%emt 0:05:51]} Na6 {[%emt 0:00:35]} 12. Rfd1 {[%emt 0:02:44]} Nb4 {[%emt 0:00:36]} 13. e3 {[%emt 0:03:32]} h6 {[%emt 0:26:26]} 14. Bxf6 {[%emt 0:03:49]} Bxf6 {[%emt 0:00:05] White has an edge.} 15. Rac1 {[%emt 0:14:53]} Rc8 {[%emt 0:05:01]} 16. Nd2 {[%emt 0:11:46]} Bxg2 {[%emt 0:23:23]} 17. Kxg2 {[%emt 0:00:07]} c5 {[%emt 0:00:04]} 18. dxc5 $16 {[%emt 0:08:27]} Qd3 {[%emt 0:00:06] [#] Repels Nde4} (18... Qe8 $142) 19. Nce4 $1 {[%emt 0:04:45]} Bxb2 {[%emt 0:08:03] [#]} (19... Be5 $16 20. Nb3 Qxc4 21. Rxc4 b6 22. Rxb4 axb4) 20. Rb1 $1 $18 {[%emt 0:03:26]} Qa3 {[%emt 0:20:42]} (20... Qxc4 {keeps fighting.} 21. Nxc4 Bf6 22. Nxa5 Nc6) 21. Qb5 {[%emt 0:06:33][%csl LRa5,LRb7][%cal Od2c4] Nc4! would now be deadly. White is clearly winning.} Bf6 {[%emt 0:05:42]} 22. Nc4 {[%emt 0:00:45]} Qa2 {[%emt 0:00:07]} 23. Nxf6+ {[%emt 0:00:26]} gxf6 {[%emt 0:00:02]} 24. Rb2 {[%emt 0:00:07] Black got outplayed after the opening.   Weighted Error Value: White=0.01 (flawless) /Black=0.74.  Mistake:       	---       	Black=4      Inaccurate:     	---       	Black=1      OK:         	White=2     	---        Best:        	White=3     	Black=1      Strong:       	White=1     	---} ({Not} 24. Qxa5 Nd3 25. Qd2 Qxc4 $14) 1-0